[Event "new tournament description"]
[Site ""]
[Date "2018.12.27"]
[Round "11.2"]
[White "BELLAHCENE"]
[Black "GROEHN"]
[Result "1-0"]
[TimeControl "4min+2sec"]
[WhiteElo "2448"]
[BlackElo "2113"]

1. e4 {[%clk 00:04:02]} {[%emt 00:11:05]} e6 {[%clk 00:04:02]} {[%emt
00:00:01]} 2. d4 {[%clk 00:04:00]} {[%emt 00:00:16]} d5 {[%clk 00:04:02]}
{[%emt 00:00:02]} 3. Nc3 {[%clk 00:04:02]} {[%emt 00:00:01]} Bb4 {[%clk
00:04:03]} 4. e5 {[%clk 00:04:03]} {[%emt 00:00:01]} c5 {[%clk 00:04:04]} 5. a3
{[%clk 00:04:04]} Bxc3+ {[%clk 00:04:05]} {[%emt 00:00:02]} 6. bxc3 {[%clk
00:04:06]} Qc7 {[%clk 00:04:06]} 7. Nf3 {[%clk 00:03:58]} {[%emt 00:00:10]} b6
{[%clk 00:04:03]} {[%emt 00:00:06]} 8. a4 {[%clk 00:03:55]} {[%emt 00:00:05]}
Ba6 {[%clk 00:04:04]} {[%emt 00:00:01]} 9. Bb5+ {[%clk 00:03:53]} {[%emt
00:00:04]} Bxb5 {[%clk 00:04:02]} {[%emt 00:00:04]} 10. axb5 {[%clk 00:03:54]}
{[%emt 00:00:01]} a5 {[%clk 00:04:04]} 11. c4 {[%clk 00:03:36]} {[%emt
00:00:19]} Ne7 {[%clk 00:03:01]} {[%emt 00:01:05]} 12. cxd5 {[%clk 00:03:33]}
{[%emt 00:00:05]} Nxd5 {[%clk 00:02:58]} {[%emt 00:00:05]} 13. c4 {[%clk
00:03:28]} {[%emt 00:00:07]} Nb4 {[%clk 00:02:18]} {[%emt 00:00:42]} 14. dxc5
{[%clk 00:03:18]} {[%emt 00:00:12]} Qxc5 {[%clk 00:01:59]} {[%emt 00:00:22]} 15.
Qe2 {[%clk 00:03:19]} Nd7 {[%clk 00:01:44]} {[%emt 00:00:17]} 16. Be3 {[%clk
00:03:13]} {[%emt 00:00:08]} Qc7 {[%clk 00:01:41]} {[%emt 00:00:05]} 17. Bd4
{[%clk 00:03:12]} {[%emt 00:00:03]} Rc8 {[%clk 00:01:40]} {[%emt 00:00:04]} 18.
Rc1 {[%clk 00:03:10]} {[%emt 00:00:03]} Nc5 {[%clk 00:01:28]} {[%emt 00:00:13]}
19. O-O {[%clk 00:03:05]} {[%emt 00:00:07]} O-O {[%clk 00:01:03]} {[%emt
00:00:28]} 20. Rc3 {[%clk 00:03:05]} {[%emt 00:00:02]} h6 {[%clk 00:01:02]}
{[%emt 00:00:03]} 21. g4 {[%clk 00:02:56]} {[%emt 00:00:11]} Qe7 {[%clk
00:00:56]} {[%emt 00:00:08]} 22. h4 {[%clk 00:02:48]} {[%emt 00:00:10]} Rfd8
{[%clk 00:00:57]} {[%emt 00:00:01]} 23. g5 {[%clk 00:02:47]} {[%emt 00:00:03]}
h5 {[%clk 00:00:54]} {[%emt 00:00:05]} 24. Rb1 {[%clk 00:02:37]} {[%emt
00:00:12]} g6 {[%clk 00:00:55]} {[%emt 00:00:02]} 25. Qe3 {[%clk 00:02:36]}
{[%emt 00:00:03]} Rd7 {[%clk 00:00:54]} {[%emt 00:00:03]} 26. Nd2 {[%clk
00:02:16]} {[%emt 00:00:21]} Rdc7 {[%clk 00:00:39]} {[%emt 00:00:17]} 27. Rd1
{[%clk 00:01:44]} {[%emt 00:00:34]} Kg7 {[%clk 00:00:40]} {[%emt 00:00:01]} 28.
Qf3 {[%clk 00:01:37]} {[%emt 00:00:09]} Kg8 {[%clk 00:00:38]} {[%emt 00:00:04]}
29. Bxc5 {[%clk 00:01:29]} {[%emt 00:00:10]} Rxc5 {[%clk 00:00:37]} {[%emt
00:00:03]} 30. Ne4 {[%clk 00:01:24]} {[%emt 00:00:06]} Rxe5 {[%clk 00:00:29]}
{[%emt 00:00:11]} 31. Nf6+ {[%clk 00:01:23]} {[%emt 00:00:02]} Kg7 {[%clk
00:00:30]} 32. Rd7 {[%clk 00:01:20]} {[%emt 00:00:05]} Qf8 {[%clk 00:00:19]}
{[%emt 00:00:13]} 33. Nxh5+ {[%clk 00:01:20]} {[%emt 00:00:02]} Kh7 {[%clk
00:00:11]} {[%emt 00:00:09]} 34. Rxf7+ {[%clk 00:01:20]} {[%emt 00:00:02]} 1-0

[ePGN "0.1;DGT LiveChess/2.2.3"]

[Event "new tournament description"]
[Site ""]
[Date "2018.12.27"]
[Round "12.1"]
[White "SCHULZ"]
[Black "GOZZOLI"]
[Result "0-1"]
[TimeControl "4min+2sec"]
[WhiteElo "2128"]
[BlackElo "2565"]

1. e4 {[%clk 00:04:03]} {[%emt 00:16:38]} Nf6 {[%clk 00:04:01]} {[%emt
00:00:03]} 2. e5 {[%clk 00:04:04]} {[%emt 00:00:01]} Nd5 {[%clk 00:04:03]} 3.
d4 {[%clk 00:04:05]} {[%emt 00:00:01]} d6 {[%clk 00:04:04]} 4. c4 {[%clk
00:04:03]} {[%emt 00:00:06]} Nb6 {[%clk 00:04:05]} 5. Nf3 {[%clk 00:04:03]}
{[%emt 00:00:01]} g6 {[%clk 00:04:06]} 6. Nc3 {[%clk 00:03:49]} {[%emt
00:00:17]} Bg7 {[%clk 00:04:07]} 7. exd6 {[%clk 00:03:41]} {[%emt 00:00:11]}
cxd6 {[%clk 00:04:08]} {[%emt 00:00:01]} 8. d5 {[%clk 00:03:24]} {[%emt
00:00:19]} O-O {[%clk 00:04:03]} {[%emt 00:00:06]} 9. Be3 {[%clk 00:03:22]}
{[%emt 00:00:04]} e6 {[%clk 00:03:53]} {[%emt 00:00:13]} 10. Qd2 {[%clk
00:02:54]} {[%emt 00:00:30]} exd5 {[%clk 00:03:53]} {[%emt 00:00:02]} 11. cxd5
{[%clk 00:02:33]} {[%emt 00:00:24]} Re8 {[%clk 00:03:48]} {[%emt 00:00:06]} 12.
Be2 {[%clk 00:02:31]} {[%emt 00:00:04]} Bg4 {[%clk 00:03:49]} {[%emt 00:00:01]}
13. O-O {[%clk 00:02:22]} {[%emt 00:00:11]} Bxf3 {[%clk 00:03:50]} {[%emt
00:00:01]} 14. gxf3 {[%clk 00:02:17]} {[%emt 00:00:07]} N8d7 {[%clk 00:03:49]}
{[%emt 00:00:03]} 15. Ne4 {[%clk 00:01:55]} {[%emt 00:00:24]} Nf6 {[%clk
00:03:17]} {[%emt 00:00:34]} 16. Bg5 {[%clk 00:01:43]} {[%emt 00:00:13]} Re5
{[%emt 00:01:19]} 17. Bd1 {[%clk 00:00:39]} {[%emt 00:00:04]} Nxe4 {[%clk
00:02:58]} {[%emt 00:00:08]} 18. Bxd8 {[%clk 00:00:33]} {[%emt 00:00:08]} Nxd2
{[%clk 00:02:57]} {[%emt 00:00:02]} 19. Bh4 {[%clk 00:00:16]} {[%emt 00:00:18]}
Nxf1 {[%clk 00:02:56]} {[%emt 00:00:03]} 20. Kxf1 {[%clk 00:00:17]} Rxd5 {[%clk
00:02:50]} {[%emt 00:00:09]} 21. Bb3 {[%clk 00:00:17]} {[%emt 00:00:02]} Rd2
{[%clk 00:02:50]} {[%emt 00:00:01]} 22. Re1 {[%clk 00:00:12]} {[%emt 00:00:07]}
d5 {[%clk 00:02:32]} {[%emt 00:00:21]} 23. Re7 {[%clk 00:00:10]} {[%emt
00:00:04]} Nc4 {[%clk 00:02:30]} {[%emt 00:00:04]} 24. Rxb7 {[%clk 00:00:09]}
{[%emt 00:00:03]} Rxb2 {[%clk 00:02:27]} {[%emt 00:00:05]} 25. Rd7 {[%clk
00:00:08]} {[%emt 00:00:04]} Nd2+ {[%clk 00:02:27]} {[%emt 00:00:01]} 26. Kg2
{[%clk 00:00:08]} {[%emt 00:00:01]} Nxb3 {[%clk 00:02:28]} {[%emt 00:00:02]} 27.
axb3 {[%clk 00:00:09]} {[%emt 00:00:01]} Rxb3 {[%clk 00:02:29]} {[%emt
00:00:01]} 0-1